[Event "Titled Tuesday Blitz July 25 Early 2023"]
[White "Gholami Orimi, Mahdi"]
[Black "Andreikin, Dmitry"]
[WhiteFideId "12558486"]
[BlackFideId "4158814"]
[WhiteElo "2909"]
[BlackElo "3032"]
[Result "1-0"]
[Round "10"]
[TimeControl "180+2"]
[Date "2023.07.25"]
[WhiteClock "0:00:07"]
[BlackClock "0:00:00"]
[Board "8"]

1. d4 {[%clk 0:03:00]}  Nf6 {[%clk 0:02:58]} 2. c4 {[%clk 0:03:01]}  e6 {[%clk 0:02:58]} 3. Nc3 {[%clk 0:03:02]}  Bb4 {[%clk 0:02:57]} 4. Qc2 {[%clk 0:02:59]}  O-O {[%clk 0:02:56]} 5. e4 {[%clk 0:02:59]}  d5 {[%clk 0:02:52]} 6. e5 {[%clk 0:02:59]}  Ne4 {[%clk 0:02:49]} 7. Bd3 {[%clk 0:02:59]}  c5 {[%clk 0:02:45]} 8. Nf3 {[%clk 0:02:59]}  cxd4 {[%clk 0:02:46]} 9. Nxd4 {[%clk 0:03:00]}  Nc5 {[%clk 0:02:46]} 10. Bxh7+ {[%clk 0:02:56]}  Kh8 {[%clk 0:02:47]} 11. O-O {[%clk 0:02:39]}  Qh4 {[%clk 0:02:42]} 12. Ncb5 {[%clk 0:02:03]}  a6 {[%clk 0:02:19]} 13. Nc7 {[%clk 0:01:59]}  Ra7 {[%clk 0:02:13]} 14. cxd5 {[%clk 0:01:52]}  Qxh7 {[%clk 0:01:54]} 15. Be3 {[%clk 0:00:52]}  b6 {[%clk 0:01:39]} 16. d6 {[%clk 0:00:52]}  Ncd7 {[%clk 0:01:32]} 17. Qb3 {[%clk 0:00:36]}  Bc5 {[%clk 0:01:29]} 18. Nf3 {[%clk 0:00:36]}  Nc6 {[%clk 0:01:24]} 19. Bxc5 {[%clk 0:00:34]}  bxc5 {[%clk 0:01:23]} 20. Ng5 {[%clk 0:00:34]}  Qf5 {[%clk 0:01:01]} 21. f4 {[%clk 0:00:29]}  Nd4 {[%clk 0:00:58]} 22. Qd1 {[%clk 0:00:23]}  Kg8 {[%clk 0:00:54]} 23. Rc1 {[%clk 0:00:23]}  f6 {[%clk 0:00:47]} 24. exf6 {[%clk 0:00:18]}  Nxf6 {[%clk 0:00:41]} 25. b4 {[%clk 0:00:18]}  Qg4 {[%clk 0:00:36]} 26. Rxc5 {[%clk 0:00:11]}  Bb7 {[%clk 0:00:20]} 27. Qxg4 {[%clk 0:00:07]}  Nxg4 {[%clk 0:00:21]} 28. Ncxe6 {[%clk 0:00:07]}  Ne2+ {[%clk 0:00:20]} 29. Kh1 {[%clk 0:00:07]}  Rf6 {[%clk 0:00:21]} 30. h3 {[%clk 0:00:06]}  Ng3+ {[%clk 0:00:20]} 31. Kg1 {[%clk 0:00:06]}  Ne2+ {[%clk 0:00:19]} 32. Kh1 {[%clk 0:00:06]}  Ng3+ {[%clk 0:00:20]} 33. Kg1 {[%clk 0:00:07]}  Nxf1 {[%clk 0:00:14]} 34. d7 {[%clk 0:00:07]}  Ra8 {[%clk 0:00:14]} 35. Kxf1 {[%clk 0:00:04]}  Ne3+ {[%clk 0:00:13]} 36. Kf2 {[%clk 0:00:04]}  Nxg2 {[%clk 0:00:14]} 37. d8=Q+ {[%clk 0:00:03]}  Rxd8 {[%clk 0:00:14]} 38. Nxd8 {[%clk 0:00:04]}  Nxf4 {[%clk 0:00:12]} 39. Nxb7 {[%clk 0:00:04]}  Nxh3+ {[%clk 0:00:09]} 40. Kg3 {[%clk 0:00:03]}  Nxg5 {[%clk 0:00:09]} 41. Rxg5 {[%clk 0:00:04]}  Rb6 {[%clk 0:00:10]} 42. Nc5 {[%clk 0:00:02]}  Rxb4 {[%clk 0:00:10]} 43. Rg4 {[%clk 0:00:02]}  Rb5 {[%clk 0:00:10]} 44. Nb3 {[%clk 0:00:02]}  Kf7 {[%clk 0:00:09]} 45. Ra4 {[%clk 0:00:03]}  Rb6 {[%clk 0:00:09]} 46. Nc5 {[%clk 0:00:03]}  Rc6 {[%clk 0:00:08]} 47. Nxa6 {[%clk 0:00:04]}  Ke6 {[%clk 0:00:09]} 48. Nb4 {[%clk 0:00:04]}  Rc4 {[%clk 0:00:09]} 49. Ra6+ {[%clk 0:00:04]}  Ke5 {[%clk 0:00:09]} 50. Nd3+ {[%clk 0:00:04]}  Kd4 {[%clk 0:00:08]} 51. Nf4 {[%clk 0:00:03]}  Kc3 {[%clk 0:00:07]} 52. Nd5+ {[%clk 0:00:02]}  Kd4 {[%clk 0:00:07]} 53. Nf4 {[%clk 0:00:03]}  Kc3 {[%clk 0:00:05]} 54. Kf3 {[%clk 0:00:04]}  g5 {[%clk 0:00:05]} 55. Ne2+ {[%clk 0:00:04]}  Kb2 {[%clk 0:00:05]} 56. Ke3 {[%clk 0:00:04]}  g4 {[%clk 0:00:05]} 57. Kd3 {[%clk 0:00:04]}  Rb4 {[%clk 0:00:04]} 58. a4 {[%clk 0:00:04]}  Ka3 {[%clk 0:00:03]} 59. a5 {[%clk 0:00:04]}  Rb5 {[%clk 0:00:02]} 60. Ra8 {[%clk 0:00:04]}  Kb4 {[%clk 0:00:02]} 61. Nd4 {[%clk 0:00:04]}  Rd5 {[%clk 0:00:01]} 62. a6 {[%clk 0:00:05]}  Ka5 {[%clk 0:00:01]} 63. Kc4 {[%clk 0:00:05]}  Rd6 {[%clk 0:00:02]} 64. Kc5 {[%clk 0:00:03]}  Rg6 {[%clk 0:00:01]} 65. Nc6+ {[%clk 0:00:04]}  Ka4 {[%clk 0:00:01]} 66. a7 {[%clk 0:00:04]}  g3 {[%clk 0:00:01]} 67. Rb8 {[%clk 0:00:05]}  Rg5+ {[%clk 0:00:02]} 68. Kd6 {[%clk 0:00:05]}  Rg6+ {[%clk 0:00:02]} 69. Ke5 {[%clk 0:00:06]}  Rg5+ {[%clk 0:00:01]} 70. Kf4 {[%clk 0:00:06]}  Ra5 {[%clk 0:00:02]} 71. Nxa5 {[%clk 0:00:06]}  g2 {[%clk 0:00:03]} 72. a8=Q {[%clk 0:00:06]}  g1=Q {[%clk 0:00:00]} 73. Nc4+ {[%clk 0:00:07]} 1-0


[Site "https://www.chess.com"]

[Event "Titled Tuesday Blitz July 25 Early 2023"]
[White "Bacrot, Etienne"]
[Black "Kevlishvili, Robby"]
[WhiteFideId "605506"]
[BlackFideId "1040634"]
[WhiteElo "2877"]
[BlackElo "2997"]
[Result "0-1"]
[Round "10"]
[TimeControl "180+2"]
[Date "2023.07.25"]
[WhiteClock "0:00:00"]
[BlackClock "0:00:25"]
[Board "10"]

1. e4 {[%clk 0:03:00]}  c5 {[%clk 0:02:56]} 2. Nf3 {[%clk 0:03:01]}  d6 {[%clk 0:02:56]} 3. Bb5+ {[%clk 0:03:01]}  Bd7 {[%clk 0:02:56]} 4. c4 {[%clk 0:03:01]}  Nf6 {[%clk 0:02:55]} 5. Nc3 {[%clk 0:03:00]}  g6 {[%clk 0:02:56]} 6. O-O {[%clk 0:03:00]}  Bg7 {[%clk 0:02:56]} 7. d4 {[%clk 0:03:01]}  cxd4 {[%clk 0:02:56]} 8. Nxd4 {[%clk 0:03:01]}  O-O {[%clk 0:02:57]} 9. f3 {[%clk 0:03:00]}  Nc6 {[%clk 0:02:55]} 10. Be3 {[%clk 0:03:00]}  Rc8 {[%clk 0:02:54]} 11. Bxc6 {[%clk 0:02:58]}  bxc6 {[%clk 0:02:53]} 12. c5 {[%clk 0:02:58]}  d5 {[%clk 0:02:50]} 13. e5 {[%clk 0:02:56]}  Ne8 {[%clk 0:02:50]} 14. f4 {[%clk 0:02:56]}  Nc7 {[%clk 0:02:50]} 15. Qd2 {[%clk 0:02:32]}  f6 {[%clk 0:02:45]} 16. exf6 {[%clk 0:02:29]}  Bxf6 {[%clk 0:02:46]} 17. Rae1 {[%clk 0:02:25]}  Ne6 {[%clk 0:02:42]} 18. Nxe6 {[%clk 0:02:12]}  Bxe6 {[%clk 0:02:43]} 19. Bd4 {[%clk 0:02:13]}  Bf5 {[%clk 0:02:43]} 20. h3 {[%clk 0:02:08]}  Rb8 {[%clk 0:02:42]} 21. Bxf6 {[%clk 0:01:26]}  exf6 {[%clk 0:02:37]} 22. Ne2 {[%clk 0:01:23]}  Be4 {[%clk 0:02:28]} 23. Nd4 {[%clk 0:01:21]}  Qd7 {[%clk 0:02:28]} 24. f5 {[%clk 0:01:21]}  gxf5 {[%clk 0:02:25]} 25. b3 {[%clk 0:01:02]}  Kh8 {[%clk 0:02:24]} 26. Qh6 {[%clk 0:00:58]}  Rf7 {[%clk 0:02:19]} 27. Nxf5 {[%clk 0:00:34]}  Bxf5 {[%clk 0:02:19]} 28. Qf4 {[%clk 0:00:34]}  Rb5 {[%clk 0:02:20]} 29. Qxf5 {[%clk 0:00:20]}  Qxf5 {[%clk 0:02:21]} 30. Rxf5 {[%clk 0:00:20]}  Rxc5 {[%clk 0:02:22]} 31. Ref1 {[%clk 0:00:17]}  Kg7 {[%clk 0:02:22]} 32. R1f2 {[%clk 0:00:17]}  Rc3 {[%clk 0:02:19]} 33. Kh2 {[%clk 0:00:17]}  Kg6 {[%clk 0:02:19]} 34. g4 {[%clk 0:00:17]}  Re3 {[%clk 0:02:16]} 35. h4 {[%clk 0:00:16]}  Re5 {[%clk 0:02:12]} 36. R5f4 {[%clk 0:00:12]}  h6 {[%clk 0:02:12]} 37. Kg3 {[%clk 0:00:12]}  c5 {[%clk 0:02:09]} 38. Ra4 {[%clk 0:00:11]}  Rfe7 {[%clk 0:02:00]} 39. Ra6 {[%clk 0:00:09]}  R5e6 {[%clk 0:01:57]} 40. Rxe6 {[%clk 0:00:09]}  Rxe6 {[%clk 0:01:58]} 41. Rc2 {[%clk 0:00:09]}  Re3+ {[%clk 0:01:54]} 42. Kf4 {[%clk 0:00:09]}  Re4+ {[%clk 0:01:54]} 43. Kf3 {[%clk 0:00:09]}  c4 {[%clk 0:01:54]} 44. Rd2 {[%clk 0:00:06]}  cxb3 {[%clk 0:01:44]} 45. axb3 {[%clk 0:00:07]}  Re5 {[%clk 0:01:43]} 46. Rd4 {[%clk 0:00:08]}  h5 {[%clk 0:01:43]} 47. gxh5+ {[%clk 0:00:08]}  Kxh5 {[%clk 0:01:43]} 48. Ra4 {[%clk 0:00:08]}  Re1 {[%clk 0:01:27]} 49. Rxa7 {[%clk 0:00:07]}  Kxh4 {[%clk 0:01:27]} 50. Rg7 {[%clk 0:00:07]}  Rb1 {[%clk 0:01:23]} 51. Kf4 {[%clk 0:00:08]}  Kh5 {[%clk 0:01:22]} 52. Kf5 {[%clk 0:00:08]}  Rf1+ {[%clk 0:01:21]} 53. Ke6 {[%clk 0:00:08]}  d4 {[%clk 0:01:19]} 54. b4 {[%clk 0:00:09]}  Kh6 {[%clk 0:01:17]} 55. Rd7 {[%clk 0:00:08]}  Rd1 {[%clk 0:00:26]} 56. Kxf6 {[%clk 0:00:07]}  d3 {[%clk 0:00:26]} 57. Ke5 {[%clk 0:00:03]}  d2 {[%clk 0:00:26]} 58. Rd6+ {[%clk 0:00:02]}  Kg7 {[%clk 0:00:25]} 59. Rd7+ {[%clk 0:00:00]}  Kf8 {[%clk 0:00:25]} 0-1


[Site "https://www.chess.com"]

[Event "Titled Tuesday Blitz July 25 Early 2023"]
[White "Kramnik, Vladimir"]
[Black "Ashraf, Artin"]
[WhiteFideId "4101588"]
[BlackFideId "22514805"]
[WhiteElo "2992"]
[BlackElo "2828"]
[Result "1-0"]
[Round "10"]
[TimeControl "180+2"]
[Date "2023.07.25"]
[WhiteClock "0:00:09"]
[BlackClock "0:00:02"]
[Board "11"]

1. e4 {[%clk 0:03:00]}  c5 {[%clk 0:02:59]} 2. Nf3 {[%clk 0:03:00]}  d6 {[%clk 0:03:00]} 3. d4 {[%clk 0:02:59]}  cxd4 {[%clk 0:03:01]} 4. Nxd4 {[%clk 0:02:58]}  Nf6 {[%clk 0:03:01]} 5. Nc3 {[%clk 0:02:58]}  a6 {[%clk 0:03:02]} 6. a4 {[%clk 0:02:59]}  e5 {[%clk 0:02:59]} 7. Nf3 {[%clk 0:02:58]}  Be7 {[%clk 0:02:58]} 8. Bg5 {[%clk 0:02:58]}  Be6 {[%clk 0:02:58]} 9. Bxf6 {[%clk 0:02:58]}  Bxf6 {[%clk 0:02:58]} 10. Nd5 {[%clk 0:02:58]}  Nd7 {[%clk 0:02:58]} 11. Bc4 {[%clk 0:02:58]}  Rc8 {[%clk 0:02:58]} 12. b3 {[%clk 0:02:58]}  Nb6 {[%clk 0:02:37]} 13. Nxf6+ {[%clk 0:02:57]}  Qxf6 {[%clk 0:02:36]} 14. Bxe6 {[%clk 0:02:58]}  Qxe6 {[%clk 0:02:36]} 15. c4 {[%clk 0:02:56]}  O-O {[%clk 0:02:27]} 16. O-O {[%clk 0:02:57]}  Nd7 {[%clk 0:02:25]} 17. Re1 {[%clk 0:02:55]}  a5 {[%clk 0:02:24]} 18. Re3 {[%clk 0:02:47]}  Qe7 {[%clk 0:02:19]} 19. Ra2 {[%clk 0:02:43]}  Nc5 {[%clk 0:02:18]} 20. Rd2 {[%clk 0:02:42]}  Rfd8 {[%clk 0:02:16]} 21. g3 {[%clk 0:02:38]}  b6 {[%clk 0:02:13]} 22. Rd5 {[%clk 0:02:33]}  Ne6 {[%clk 0:02:10]} 23. h4 {[%clk 0:02:22]}  Nc5 {[%clk 0:01:50]} 24. Kg2 {[%clk 0:02:21]}  Rd7 {[%clk 0:01:47]} 25. Nd2 {[%clk 0:02:12]}  Rf8 {[%clk 0:01:44]} 26. Nb1 {[%clk 0:02:06]}  g6 {[%clk 0:01:37]} 27. Nc3 {[%clk 0:02:03]}  f5 {[%clk 0:01:37]} 28. exf5 {[%clk 0:01:59]}  gxf5 {[%clk 0:01:37]} 29. f4 {[%clk 0:01:51]}  e4 {[%clk 0:01:35]} 30. Rxf5 {[%clk 0:01:43]}  Rxf5 {[%clk 0:01:06]} 31. Qg4+ {[%clk 0:01:43]}  Qg7 {[%clk 0:01:06]} 32. Qxf5 {[%clk 0:01:44]}  Kh8 {[%clk 0:00:42]} 33. Nxe4 {[%clk 0:01:36]}  Rf7 {[%clk 0:00:41]} 34. Qg5 {[%clk 0:01:09]}  Qd4 {[%clk 0:00:29]} 35. Nf6 {[%clk 0:00:37]}  Rf8 {[%clk 0:00:04]} 36. Nd5 {[%clk 0:00:38]}  Ne4 {[%clk 0:00:04]} 37. Qe7 {[%clk 0:00:36]}  Qd2+ {[%clk 0:00:04]} 38. Kf3 {[%clk 0:00:36]}  Qd1+ {[%clk 0:00:02]} 39. Kxe4 {[%clk 0:00:34]}  Qh1+ {[%clk 0:00:02]} 40. Kd3 {[%clk 0:00:19]}  Qd1+ {[%clk 0:00:02]} 41. Kc3 {[%clk 0:00:16]}  Qc1+ {[%clk 0:00:03]} 42. Kd4 {[%clk 0:00:16]}  Qd1+ {[%clk 0:00:02]} 43. Ke4 {[%clk 0:00:15]}  Qh1+ {[%clk 0:00:02]} 44. Rf3 {[%clk 0:00:14]}  Qb1+ {[%clk 0:00:02]} 45. Rd3 {[%clk 0:00:11]}  Qh1+ {[%clk 0:00:02]} 46. Kd4 {[%clk 0:00:10]}  Qg1+ {[%clk 0:00:03]} 47. Kc3 {[%clk 0:00:10]}  Qc1+ {[%clk 0:00:03]} 48. Kd4 {[%clk 0:00:11]}  Qg1+ {[%clk 0:00:03]} 49. Qe3 {[%clk 0:00:11]}  Qa1+ {[%clk 0:00:03]} 50. Nc3 {[%clk 0:00:11]}  Qa3 {[%clk 0:00:04]} 51. Rd1 {[%clk 0:00:08]}  Qb4 {[%clk 0:00:03]} 52. Kd3 {[%clk 0:00:08]}  Qxb3 {[%clk 0:00:03]} 53. Qd4+ {[%clk 0:00:09]}  Kg8 {[%clk 0:00:03]} 54. Rb1 {[%clk 0:00:09]}  Qa3 {[%clk 0:00:04]} 55. Qd5+ {[%clk 0:00:09]}  Kh8 {[%clk 0:00:04]} 56. Qg5 {[%clk 0:00:10]}  b5 {[%clk 0:00:02]} 57. Qxb5 {[%clk 0:00:10]}  h6 {[%clk 0:00:01]} 58. Qh5 {[%clk 0:00:10]}  Rg8 {[%clk 0:00:02]} 59. Qxh6# {[%clk 0:00:09]} 1-0


[Site "https://www.chess.com"]

[Event "Titled Tuesday Blitz July 25 Early 2023"]
[White "Sychev, Klementy"]
[Black "Svane, Rasmus"]
[WhiteFideId "4114060"]
[BlackFideId "4657101"]
[WhiteElo "2853"]
[BlackElo "2971"]
[Result "1/2-1/2"]
[Round "10"]
[TimeControl "180+2"]
[Date "2023.07.25"]
[WhiteClock "0:00:03"]
[BlackClock "0:00:03"]
[Board "12"]

1. e4 {[%clk 0:03:00]}  c6 {[%clk 0:02:59]} 2. c4 {[%clk 0:02:59]}  d5 {[%clk 0:03:00]} 3. cxd5 {[%clk 0:02:59]}  cxd5 {[%clk 0:03:01]} 4. exd5 {[%clk 0:02:59]}  Nf6 {[%clk 0:03:01]} 5. Qa4+ {[%clk 0:03:00]}  Nbd7 {[%clk 0:03:02]} 6. Nc3 {[%clk 0:03:00]}  g6 {[%clk 0:03:02]} 7. Bc4 {[%clk 0:03:00]}  Bg7 {[%clk 0:03:03]} 8. Nf3 {[%clk 0:02:56]}  a6 {[%clk 0:03:03]} 9. d3 {[%clk 0:02:54]}  Rb8 {[%clk 0:03:04]} 10. Bb3 {[%clk 0:02:50]}  b5 {[%clk 0:03:03]} 11. Qh4 {[%clk 0:02:49]}  Nc5 {[%clk 0:03:00]} 12. Bh6 {[%clk 0:02:31]}  O-O {[%clk 0:02:58]} 13. O-O {[%clk 0:02:22]}  Bb7 {[%clk 0:02:51]} 14. Ng5 {[%clk 0:01:59]}  Nxb3 {[%clk 0:01:35]} 15. axb3 {[%clk 0:01:57]}  Bxd5 {[%clk 0:01:36]} 16. Rxa6 {[%clk 0:01:51]}  Bb7 {[%clk 0:01:34]} 17. Bxg7 {[%clk 0:01:30]}  Kxg7 {[%clk 0:01:21]} 18. Rxf6 {[%clk 0:01:29]}  Kxf6 {[%clk 0:01:12]} 19. Re1 {[%clk 0:00:56]}  e5 {[%clk 0:01:12]} 20. Re3 {[%clk 0:00:32]}  h5 {[%clk 0:00:51]} 21. Qg3 {[%clk 0:00:18]}  Re8 {[%clk 0:00:38]} 22. h4 {[%clk 0:00:07]}  Kg7 {[%clk 0:00:31]} 23. Rxe5 {[%clk 0:00:07]}  Qf6 {[%clk 0:00:32]} 24. Re3 {[%clk 0:00:03]}  b4 {[%clk 0:00:28]} 25. Nce4 {[%clk 0:00:03]}  Bxe4 {[%clk 0:00:28]} 26. dxe4 {[%clk 0:00:04]}  Qe5 {[%clk 0:00:26]} 27. Qf3 {[%clk 0:00:04]}  Re7 {[%clk 0:00:24]} 28. Rd3 {[%clk 0:00:04]}  Qxb2 {[%clk 0:00:22]} 29. g3 {[%clk 0:00:04]}  Ra8 {[%clk 0:00:20]} 30. Kg2 {[%clk 0:00:04]}  Ra1 {[%clk 0:00:20]} 31. e5 {[%clk 0:00:03]}  Qxe5 {[%clk 0:00:19]} 32. Re3 {[%clk 0:00:04]}  Qd6 {[%clk 0:00:14]} 33. Rxe7 {[%clk 0:00:03]}  Qxe7 {[%clk 0:00:14]} 34. Qf4 {[%clk 0:00:04]}  Qb7+ {[%clk 0:00:12]} 35. Ne4 {[%clk 0:00:04]}  Re1 {[%clk 0:00:07]} 36. f3 {[%clk 0:00:03]}  Re2+ {[%clk 0:00:07]} 37. Kf1 {[%clk 0:00:03]}  Qa6 {[%clk 0:00:07]} 38. Qe5+ {[%clk 0:00:03]}  Kf8 {[%clk 0:00:07]} 39. Qh8+ {[%clk 0:00:03]}  Ke7 {[%clk 0:00:08]} 40. Qe5+ {[%clk 0:00:03]}  Kd8 {[%clk 0:00:07]} 41. Qb8+ {[%clk 0:00:04]}  Ke7 {[%clk 0:00:07]} 42. Qxb4+ {[%clk 0:00:04]}  Ke8 {[%clk 0:00:04]} 43. Qb8+ {[%clk 0:00:04]}  Ke7 {[%clk 0:00:03]} 44. Qe5+ {[%clk 0:00:03]}  Kd8 {[%clk 0:00:03]} 45. Qb8+ {[%clk 0:00:02]}  Ke7 {[%clk 0:00:02]} 46. Qe5+ {[%clk 0:00:03]}  Kf8 {[%clk 0:00:02]} 47. Qh8+ {[%clk 0:00:03]}  Ke7 {[%clk 0:00:03]} 48. Qe5+ {[%clk 0:00:03]} 1/2-1/2


[Site "https://www.chess.com"]

[Event "Titled Tuesday Blitz July 25 Early 2023"]
[White "Terry, Renato"]
[Black "ATM622"]
[WhiteFideId "3803457"]
[WhiteElo "2957"]
[BlackElo "2565"]
[Result "1-0"]
[Round "10"]
[TimeControl "180+2"]
[Date "2023.07.25"]
[WhiteClock "0:00:07"]
[BlackClock "0:00:00"]
[Board "16"]

1. d4 {[%clk 0:03:00]}  Nf6 {[%clk 0:02:57]} 2. Nf3 {[%clk 0:03:01]}  e6 {[%clk 0:02:57]} 3. c4 {[%clk 0:03:01]}  d5 {[%clk 0:02:57]} 4. e3 {[%clk 0:03:02]}  Be7 {[%clk 0:02:54]} 5. b3 {[%clk 0:03:01]}  O-O {[%clk 0:02:55]} 6. Bd3 {[%clk 0:03:00]}  dxc4 {[%clk 0:02:53]} 7. bxc4 {[%clk 0:03:00]}  b6 {[%clk 0:02:53]} 8. O-O {[%clk 0:03:01]}  Bb7 {[%clk 0:02:53]} 9. Qe2 {[%clk 0:03:00]}  c5 {[%clk 0:02:53]} 10. Rd1 {[%clk 0:03:01]}  Qc7 {[%clk 0:02:43]} 11. Bb2 {[%clk 0:02:54]}  cxd4 {[%clk 0:02:39]} 12. exd4 {[%clk 0:02:53]}  Nc6 {[%clk 0:02:36]} 13. Nbd2 {[%clk 0:02:53]}  Rad8 {[%clk 0:02:28]} 14. Rac1 {[%clk 0:02:52]}  Nb4 {[%clk 0:02:25]} 15. Bb1 {[%clk 0:02:52]}  a5 {[%clk 0:02:22]} 16. a3 {[%clk 0:02:51]}  Nc6 {[%clk 0:02:21]} 17. Ne4 {[%clk 0:02:41]}  Nb8 {[%clk 0:02:01]} 18. d5 {[%clk 0:02:40]}  Nxe4 {[%clk 0:01:32]} 19. Qxe4 {[%clk 0:02:39]}  g6 {[%clk 0:01:26]} 20. Qd4 {[%clk 0:02:20]}  f6 {[%clk 0:01:25]} 21. Qe3 {[%clk 0:02:02]}  e5 {[%clk 0:01:19]} 22. h4 {[%clk 0:01:24]}  Bc5 {[%clk 0:01:18]} 23. Qe2 {[%clk 0:01:24]}  Nd7 {[%clk 0:01:10]} 24. h5 {[%clk 0:01:25]}  Kg7 {[%clk 0:01:10]} 25. Nh4 {[%clk 0:01:21]}  g5 {[%clk 0:01:01]} 26. Qd3 {[%clk 0:01:08]}  Rh8 {[%clk 0:00:57]} 27. Nf5+ {[%clk 0:00:59]}  Kf8 {[%clk 0:00:56]} 28. Qf3 {[%clk 0:00:57]}  h6 {[%clk 0:00:40]} 29. Be4 {[%clk 0:00:57]}  Bd6 {[%clk 0:00:38]} 30. Ne3 {[%clk 0:00:52]}  Kg7 {[%clk 0:00:34]} 31. Nf5+ {[%clk 0:00:47]}  Kf8 {[%clk 0:00:34]} 32. Re1 {[%clk 0:00:44]}  Nc5 {[%clk 0:00:33]} 33. Bc2 {[%clk 0:00:44]}  Re8 {[%clk 0:00:29]} 34. Nd4 {[%clk 0:00:30]}  Qg7 {[%clk 0:00:22]} 35. Nf5 {[%clk 0:00:25]}  Qc7 {[%clk 0:00:21]} 36. Re3 {[%clk 0:00:25]}  Bc8 {[%clk 0:00:20]} 37. Ng3 {[%clk 0:00:25]}  Qg7 {[%clk 0:00:17]} 38. Bf5 {[%clk 0:00:25]}  g4 {[%clk 0:00:16]} 39. Qd1 {[%clk 0:00:23]}  Qg5 {[%clk 0:00:13]} 40. Bxc8 {[%clk 0:00:23]}  Rxc8 {[%clk 0:00:14]} 41. a4 {[%clk 0:00:20]}  Kf7 {[%clk 0:00:10]} 42. Rb1 {[%clk 0:00:16]}  Rhe8 {[%clk 0:00:08]} 43. Ba1 {[%clk 0:00:16]}  f5 {[%clk 0:00:07]} 44. Rxb6 {[%clk 0:00:16]}  f4 {[%clk 0:00:07]} 45. Re2 {[%clk 0:00:15]}  fxg3 {[%clk 0:00:04]} 46. Rxd6 {[%clk 0:00:14]}  Ke7 {[%clk 0:00:00]} 47. Rc6 {[%clk 0:00:07]} 1-0


[Site "https://www.chess.com"]

[Event "Titled Tuesday Blitz July 25 Early 2023"]
[White "Xiong, Jeffery"]
[Black "Wagner, Dennis"]
[WhiteFideId "2047640"]
[BlackFideId "24650684"]
[WhiteElo "2984"]
[BlackElo "2776"]
[Result "1-0"]
[Round "10"]
[TimeControl "180+2"]
[Date "2023.07.25"]
[WhiteClock "0:00:41"]
[BlackClock "0:00:00"]
[Board "17"]

1. e4 {[%clk 0:03:00]}  e5 {[%clk 0:02:59]} 2. Nf3 {[%clk 0:03:00]}  Nc6 {[%clk 0:03:00]} 3. Bc4 {[%clk 0:03:00]}  Nf6 {[%clk 0:02:59]} 4. d3 {[%clk 0:03:01]}  Bc5 {[%clk 0:03:00]} 5. O-O {[%clk 0:03:01]}  d6 {[%clk 0:02:59]} 6. h3 {[%clk 0:02:54]}  h6 {[%clk 0:02:58]} 7. Nc3 {[%clk 0:02:55]}  a6 {[%clk 0:02:57]} 8. Be3 {[%clk 0:02:50]}  Bxe3 {[%clk 0:02:49]} 9. fxe3 {[%clk 0:02:51]}  Be6 {[%clk 0:02:46]} 10. Bb3 {[%clk 0:02:51]}  O-O {[%clk 0:02:32]} 11. d4 {[%clk 0:02:51]}  Bxb3 {[%clk 0:02:30]} 12. axb3 {[%clk 0:02:52]}  Re8 {[%clk 0:02:25]} 13. Qd3 {[%clk 0:02:53]}  Nb4 {[%clk 0:02:02]} 14. Qd2 {[%clk 0:02:51]}  a5 {[%clk 0:01:20]} 15. Rae1 {[%clk 0:02:50]}  Qe7 {[%clk 0:01:03]} 16. Qd1 {[%clk 0:02:43]}  c6 {[%clk 0:00:59]} 17. Nh4 {[%clk 0:02:43]}  g6 {[%clk 0:00:41]} 18. Rf2 {[%clk 0:02:43]}  Nh7 {[%clk 0:00:34]} 19. Nf3 {[%clk 0:02:43]}  Rad8 {[%clk 0:00:32]} 20. Ref1 {[%clk 0:02:43]}  Rf8 {[%clk 0:00:32]} 21. Nd2 {[%clk 0:02:41]}  Kg7 {[%clk 0:00:28]} 22. Nc4 {[%clk 0:02:41]}  Qc7 {[%clk 0:00:26]} 23. h4 {[%clk 0:02:24]}  b5 {[%clk 0:00:26]} 24. Nd2 {[%clk 0:02:22]}  Qe7 {[%clk 0:00:24]} 25. h5 {[%clk 0:02:22]}  Qg5 {[%clk 0:00:21]} 26. hxg6 {[%clk 0:02:10]}  fxg6 {[%clk 0:00:22]} 27. Rxf8 {[%clk 0:02:10]}  Rxf8 {[%clk 0:00:21]} 28. Rxf8 {[%clk 0:02:10]}  Nxf8 {[%clk 0:00:20]} 29. Nf1 {[%clk 0:02:11]}  Ne6 {[%clk 0:00:17]} 30. d5 {[%clk 0:02:12]}  cxd5 {[%clk 0:00:16]} 31. Nxb5 {[%clk 0:02:12]}  Nc5 {[%clk 0:00:09]} 32. exd5 {[%clk 0:01:39]}  Qe7 {[%clk 0:00:05]} 33. Ng3 {[%clk 0:01:18]}  h5 {[%clk 0:00:05]} 34. Nf1 {[%clk 0:01:09]}  Kh7 {[%clk 0:00:05]} 35. Na3 {[%clk 0:01:02]}  Qg5 {[%clk 0:00:03]} 36. Nc4 {[%clk 0:01:02]}  e4 {[%clk 0:00:03]} 37. Nxd6 {[%clk 0:00:59]}  Nxd5 {[%clk 0:00:03]} 38. Qd4 {[%clk 0:00:57]}  Ne6 {[%clk 0:00:01]} 39. Nxe4 {[%clk 0:00:56]}  Nxd4 {[%clk 0:00:01]} 40. Nxg5+ {[%clk 0:00:56]}  Kh6 {[%clk 0:00:02]} 41. exd4 {[%clk 0:00:56]}  Kxg5 {[%clk 0:00:03]} 42. Kf2 {[%clk 0:00:51]}  Kf4 {[%clk 0:00:03]} 43. c4 {[%clk 0:00:42]}  Nb4 {[%clk 0:00:03]} 44. Ke2 {[%clk 0:00:43]}  Ke4 {[%clk 0:00:02]} 45. d5 {[%clk 0:00:43]}  Ke5 {[%clk 0:00:02]} 46. Nd2 {[%clk 0:00:43]}  Kd6 {[%clk 0:00:01]} 47. Nf3 {[%clk 0:00:42]}  Kc5 {[%clk 0:00:00]} 48. Kd2 {[%clk 0:00:41]} 1-0


[Site "https://www.chess.com"]